bitfinex-derivatives/quotes_SOLF0:USTF0_20241218
["timestamp","ask_amount","ask_price","bid_price","bid_amount"]
[1734487612233,2.287,218.6,218.45,4.4698]
[1734487613436,2.287,218.6,218.54,2.2874]
[1734487614233,2.2872,218.58,218.52,2.2877]
[1734487615436,2.2869,218.6,218.49,3.0]
[1734487615638,14.02160585,218.65,218.48,3.0]
[1734487616134,2.2873,218.57,218.51,2.2877]
[1734487616929,2.2873,218.57,218.52,2.2877]
[1734487617333,2.2871,218.58,218.48,3.0]
[1734487617535,5.48111753,218.61,218.56,2.2873]
[1734487617740,5.48111753,218.61,218.48,3.0]
[1734487617934,7.76801753,218.61,218.48,3.0]
[1734487618136,5.48111753,218.61,218.54,2.2874]
[1734487618436,2.2869,218.6,218.48,3.0]
[1734487618737,5.48111753,218.61,218.51,2.2877]
[1734487618938,5.48111753,218.61,218.48,3.0]
[1734487619135,2.2873,218.57,218.52,2.2877]
[1734487620637,2.2875,218.55,218.5,2.2878]
[1734487620934,3.0,218.57,218.45,1.4698]
[1734487621130,2.2879,218.51,218.45,3.7582]
[1734487621534,17.02160585,218.57,218.42,1.4607]
[1734487621836,24.43311858,218.56,218.39,14.02160585]
[1734487622028,24.43311858,218.56,218.39,15.49350585]
[1734487622228,2.2877,218.53,218.39,15.49350585]
[1734487622431,7.18826516,218.54,218.39,15.49350585]
[1734487622637,3.0,218.55,218.39,15.49350585]
[1734487622838,27.57275028,218.55,218.46,2.2883]
[1734487623035,17.44748362,218.54,218.41,3.0]
[1734487623234,7.18826516,218.53,218.51,2.2878]
[1734487623437,7.18826516,218.55,218.51,2.2878]
[1734487623641,7.18826516,218.57,218.51,2.2878]
[1734487624037,2.2874,218.56,218.5,2.2879]
[1734487624733,7.18826516,218.57,218.46,3.0]
[1734487625345,7.18826516,218.57,218.46,5.2884]
[1734487625540,28.33739315,218.57,218.39,15.49350585]
[1734487625735,2.2878,218.51,218.42,2.2887]
[1734487625932,3.0,218.53,218.39,4.4719]
[1734487626439,2.2881,218.49,218.39,4.4719]
[1734487626843,9.47616516,218.51,218.39,4.4719]
[1734487627036,9.47616516,218.51,218.39,18.49350585]
[1734487627037,2.2879,218.51,218.39,18.49350585]
[1734487627238,3.0,218.53,218.39,18.49350585]
[1734487627544,2.2877,218.52,218.39,18.49350585]
[1734487627844,7.21572854,218.54,218.39,18.49350585]
[1734487628044,17.47530222,218.56,218.42,8.7786581]
[1734487628339,7.21572854,218.55,218.42,8.7786581]
[1734487628542,2.2876,218.53,218.48,2.2881]
[1734487628740,7.21572854,218.55,218.45,11.6386581]
[1734487629035,7.21572854,218.56,218.48,8.7786581]
[1734487629245,7.21572854,218.6,218.54,2.2874]
[1734487629438,8.34111753,218.61,218.54,2.2874]
[1734487629636,2.86,218.61,218.51,8.7786581]
[1734487629834,7.21572854,218.61,218.56,2.2873]
[1734487630035,7.21572854,218.62,218.56,2.2873]
[1734487630733,7.21572854,218.62,218.5,1.5454]
[1734487631336,5.51119317,218.63,218.53,14.03444572]
[1734487631739,2.86,218.69,218.53,14.03444572]
[1734487631940,7.77938648,218.69,218.62,2.2867]
[1734487632345,15.00127806,218.69,218.62,2.2867]
[1734487632642,7.77938648,218.69,218.62,2.2867]
[1734487633045,7.2199741,218.71,218.59,2.86]
[1734487633237,2.86,218.72,218.6,1.5773]
[1734487633238,12.80725054,218.72,218.6,1.5773]
[1734487633443,12.80725054,218.72,218.6,3.0699]
[1734487633444,5.58727644,218.72,218.6,3.0699]
[1734487633644,7.87297644,218.72,218.65,2.2863]
[1734487634147,5.58727644,218.72,218.61,1.4706]
[1734487634544,2.2859,218.7,218.63,2.2866]
[1734487635043,5.58727644,218.72,218.61,1.4706]
[1734487635245,23.06893204,218.72,218.61,1.4706]
[1734487635447,7.21441413,218.71,218.61,1.4706]
[1734487635639,2.2863,218.67,218.61,1.4706]
[1734487635838,2.2863,218.67,218.61,3.7574]
[1734487637048,2.286,218.69,218.61,1.4706]
[1734487637243,9.50532108,218.69,218.61,1.4706]
[1734487637445,5.58727644,218.72,218.61,1.4706]
[1734487637847,2.2857,218.71,218.61,1.4706]
[1734487638447,2.2857,218.71,218.65,2.2864]
[1734487638751,2.2857,218.71,218.61,1.4706]
[1734487638953,5.58727644,218.72,218.61,1.4706]
[1734487639347,30.21276683,218.72,218.61,1.4706]
[1734487639549,24.62549039,218.71,218.61,1.4706]
[1734487639750,24.62549039,218.7,218.61,1.4706]
[1734487639948,17.49381015,218.69,218.61,1.4706]
[1734487640151,17.49381015,218.68,218.61,1.4706]
[1734487640341,7.22299931,218.67,218.62,2.2866]
[1734487640646,14.03444572,218.65,218.45,2.86]
[1734487640847,2.2871,218.58,218.46,1.4932]
[1734487641046,2.2871,218.58,218.52,2.2877]
[1734487641241,27.46453606,218.64,218.46,1.4932]
[1734487641647,2.86,218.64,218.46,1.4932]
[1734487641845,14.03444572,218.61,218.46,1.4932]
[1734487642350,17.47003065,218.6,218.48,2.2881]
[1734487642549,7.21249667,218.59,218.48,2.2881]
[1734487642850,14.03444572,218.57,218.36,14.03444572]
[1734487643046,14.03444572,218.57,218.37,4.3532]
[1734487643047,24.58466454,218.56,218.37,4.3532]
[1734487643245,24.58466454,218.55,218.37,4.3532]
[1734487643445,14.03444572,218.53,218.37,1.4932]
[1734487643644,14.03444572,218.49,218.34,3.0089]
[1734487643946,2.86,218.48,218.34,3.0089]
[1734487644349,10.06110444,218.48,218.34,3.0089]
[1734487644548,2.2886,218.44,218.36,2.2894]
[1734487644747,10.06110444,218.48,218.34,3.0089]
[1734487644945,2.86,218.48,218.34,3.0089]
[1734487645146,14.03444572,218.53,218.36,14.03444572]
[1734487645346,2.86,218.54,218.37,2.86]
[1734487645548,2.288,218.5,218.42,2.2888]
[1734487645749,2.86,218.54,218.43,2.86]
[1734487645948,2.86,218.54,218.42,2.86]
[1734487646149,2.86,218.54,218.43,2.86]
[1734487646345,2.2876,218.53,218.43,2.86]
[1734487646652,2.86,218.58,218.43,2.86]
[1734487646848,5.1471,218.58,218.5,2.2879]
[1734487647443,42.74321711,218.62,218.49,2.86]
[1734487648953,5.55171857,218.61,218.49,2.86]
[1734487649850,19.58616429,218.61,218.48,2.86]
[1734487650445,19.58616429,218.61,218.48,5.1481]
[1734487650856,2.2873,218.56,218.49,2.288]
[1734487651156,19.58616429,218.61,218.49,2.288]
[1734487651849,19.58616429,218.61,218.48,2.86]
[1734487652048,19.58616429,218.61,218.5,2.2879]
[1734487652449,2.2873,218.57,218.48,2.86]
[1734487653048,45.60321711,218.62,218.48,2.86]
[1734487653247,161.61354131,218.69,218.49,14.03444572]
[1734487653448,17.6320865,218.68,218.49,14.03444572]
[1734487653656,7.20692045,218.67,218.49,14.03444572]
[1734487653856,2.2868,218.61,218.49,14.03444572]
[1734487654260,2.2868,218.61,218.5,2.86]
[1734487654959,14.03444572,218.62,218.45,22.61254181]
[1734487655153,14.03444572,218.62,218.46,2.86]
[1734487655353,7.20509362,218.61,218.46,2.86]
[1734487655855,14.03444572,218.62,218.46,2.86]
[1734487657056,2.86,218.63,218.46,2.86]
[1734487657354,2.86,218.63,218.53,2.2876]
[1734487657559,23.01794528,218.65,218.45,22.61254181]
[1734487657560,7.20601155,218.64,218.52,2.86]
[1734487657769,5.387676,218.65,218.53,2.86]
[1734487657963,2.2865,218.65,218.59,2.287]
[1734487658165,2.86,218.71,218.56,2.86]
[1734487658360,2.86,218.71,218.53,14.03444572]
[1734487658361,17.63459847,218.71,218.57,7.5242]
[1734487658557,2.2859,218.7,218.62,2.2866]
[1734487658759,14.03444572,218.72,218.57,7.5242]
[1734487658760,7.20698057,218.71,218.57,7.5242]
[1734487658960,14.03444572,218.72,218.57,7.5242]
[1734487659171,2.286,218.69,218.6,2.2868]
[1734487659367,23.11273134,218.7,218.57,7.5242]
[1734487659669,5.48631209,218.7,218.57,7.5242]
[1734487660167,23.10917558,218.7,218.57,7.5242]
[1734487660368,2.2863,218.66,218.6,2.2869]
[1734487660773,2.2865,218.65,218.58,2.287]
[1734487661067,14.03444572,218.68,218.55,2.86]
[1734487661371,14.03444572,218.68,218.49,14.03444572]
[1734487661372,20.47941764,218.67,218.53,2.86]
[1734487661675,20.47941764,218.67,218.49,14.03444572]
[1734487661676,14.03444572,218.68,218.55,2.2874]
[1734487661867,17.61467689,218.67,218.52,2.86]
[1734487662066,155.92540768,218.7,218.53,14.03444572]
[1734487662264,8.34631209,218.7,218.53,14.03444572]
[1734487662463,2.286,218.69,218.61,2.2867]
[1734487662770,5.48631209,218.7,218.61,2.2867]
[1734487663374,2.2862,218.68,218.61,2.2867]
[1734487663970,2.2862,218.68,218.59,2.86]
[1734487664166,5.48631209,218.7,218.59,2.86]
[1734487664167,7.77221209,218.7,218.59,2.86]
[1734487664769,2.286,218.69,218.59,2.86]
[1734487665266,9.48558673,218.71,218.64,2.2864]
[1734487665470,10.4136837,218.73,218.6,2.86]
[1734487665671,7.19838666,218.72,218.59,2.86]
[1734487665874,2.286,218.69,218.59,2.86]
[1734487666771,2.2861,218.68,218.62,2.2867]
[1734487666975,5.48105534,218.71,218.59,2.86]
[1734487667766,2.2859,218.7,218.59,2.86]
[1734487668372,5.48105534,218.71,218.63,2.2865]
[1734487668572,2.286,218.69,218.63,2.2865]
[1734487668873,5.48105534,218.71,218.62,2.2867]
[1734487669271,5.48105534,218.71,218.59,2.86]
[1734487669272,2.286,218.69,218.59,2.86]
[1734487669471,2.286,218.69,218.63,2.2866]
[1734487669667,5.48105534,218.71,218.58,3.0563]
[1734487669972,8.77174505,218.66,218.56,5.1472]
[1734487670277,8.77174505,218.66,218.51,8.77174505]
[1734487670470,8.77174505,218.63,218.5,8.39701593]
[1734487670671,8.77174505,218.63,218.48,2.86]
[1734487671270,2.2872,218.58,218.51,2.2878]
[1734487671676,2.86,218.61,218.51,2.2878]
[1734487672072,2.86,218.61,218.49,2.86]
[1734487673372,2.86,218.61,218.47,5.52109234]
[1734487673570,2.86,218.61,218.48,2.86]
[1734487674778,2.86,218.61,218.44,14.04091036]
[1734487674978,2.86,218.61,218.45,2.86]
[1734487675474,2.2874,218.56,218.51,2.2878]
[1734487675772,2.2874,218.56,218.45,2.86]
[1734487675773,10.05630899,218.61,218.46,2.86]
[1734487675972,2.86,218.61,218.46,2.86]
[1734487676979,7.1957442,218.63,218.46,2.86]
[1734487677176,14.04091036,218.64,218.46,2.86]
[1734487677376,2.287,218.59,218.54,2.2874]
[1734487677569,2.86,218.64,218.52,2.86]
[1734487677770,147.57909559,218.67,218.52,2.86]
[1734487677970,2.2863,218.66,218.61,2.2868]
[1734487678176,2.86,218.7,218.61,2.2868]
[1734487678480,20.47433591,218.7,218.61,2.2868]
[1734487678669,5.41460295,218.66,218.61,2.2868]
[1734487679581,2.2864,218.65,218.58,2.86]
[1734487680980,5.41460295,218.66,218.61,2.2868]
[1734487681176,7.70090295,218.66,218.61,2.2868]
[1734487681379,10.41948789,218.69,218.58,2.86]
[1734487681676,5.54960387,218.72,218.58,2.86]
[1734487682178,5.54960387,218.72,218.67,2.2862]
[1734487682982,5.54960387,218.72,218.65,5.1463]
[1734487683775,5.54960387,218.72,218.65,2.86]
[1734487683980,5.54960387,218.72,218.66,2.2862]
[1734487685482,2.2859,218.7,218.65,5.1464]
[1734487686975,2.2861,218.68,218.63,2.2865]
[1734487687181,5.54960387,218.72,218.61,2.86]
[1734487687486,5.54960387,218.72,218.66,2.2863]
[1734487687487,7.83530387,218.72,218.66,2.2863]
[1734487687983,35.83759019,218.74,218.64,2.2864]
[1734487688184,147.57909559,218.75,218.61,2.86]
[1734487688384,147.57909559,218.76,218.61,2.86]
[1734487688584,147.57909559,218.78,218.61,2.86]
[1734487689086,2.2855,218.74,218.61,2.86]
[1734487689489,2.2855,218.74,218.68,2.286]
[1734487689688,2.2855,218.74,218.68,5.146]
[1734487690289,2.2855,218.74,218.69,2.2859]
[1734487691284,24.75735493,218.8,218.68,16.90091036]
[1734487691484,147.57909559,218.84,218.72,14.04091036]
[1734487691690,7.21259601,218.83,218.72,14.04091036]
[1734487691995,324.3268752,218.88,218.69,4.6889]
[1734487691996,147.57909559,218.89,218.83,2.2845]
[1734487692189,147.57909559,218.89,218.81,2.86]
[1734487692190,24.77669597,218.88,218.81,2.86]
[1734487692384,147.57909559,218.92,218.81,2.86]
[1734487692585,2.86,218.97,218.83,8.74893503]
[1734487692790,2.2835,218.93,218.85,2.2842]
[1734487693089,23.18589877,218.96,218.86,8.74893503]
[1734487693286,5.53757015,218.96,218.87,2.86]
[1734487694090,52.32,219.05,218.87,2.86]
[1734487694283,5.40812616,219.01,218.87,2.86]
[1734487694895,2.2828,218.99,218.87,2.86]
[1734487695295,2.2828,218.99,218.92,2.2835]
[1734487695489,66.77036909,219.06,218.93,2.86]
[1734487695693,66.77036909,219.06,218.94,2.86]
[1734487695892,5.46462078,219.04,218.95,2.86]
[1734487696093,2.2824,219.04,218.95,2.86]
[1734487696894,2.2824,219.03,218.95,5.1432]
[1734487699098,2.2824,219.03,218.9,19.47406841]
[1734487699099,66.77036909,219.06,218.96,2.2831]
[1734487699396,66.77036909,219.06,218.97,2.86]
[1734487699599,66.77036909,219.06,218.98,2.86]
[1734487699895,147.57909559,219.34,219.17,16.0]
[1734487700201,2.2792,219.34,219.33,13.99220782]
[1734487700407,5.46378278,219.37,219.24,4.12]
[1734487700702,10.29328368,219.45,219.36,13.99220782]
[1734487700900,10.08469952,219.61,219.36,13.99220782]
[1734487701099,11.97080343,219.6,219.41,13.99220782]
[1734487701295,5.79766994,219.59,219.41,13.99220782]
[1734487701600,4.5477,219.86,219.46,13.99220782]
[1734487701601,5.51016206,219.5,219.46,13.99220782]
[1734487701800,1.4662,219.65,219.46,13.99220782]
[1734487701997,1.4662,219.65,219.52,13.99220782]
[1734487702196,6.79522661,219.6,219.52,13.99220782]
[1734487702401,6.79522661,219.6,219.53,2.2772]
[1734487702598,1.4662,219.65,219.53,2.2772]
[1734487703003,1.5462,219.68,219.61,13.99220782]
[1734487703998,1.5462,219.68,219.65,2.2759]
[1734487704204,1.5462,219.68,219.63,22.57105133]
[1734487704898,1.5462,219.68,219.65,2.2759]
[1734487705101,1.5462,219.68,219.54,22.57105133]
[1734487705402,1.5462,219.68,219.61,2.2763]
[1734487705599,1.5462,219.68,219.58,22.57105133]
[1734487706306,1.5462,219.68,219.63,5.57364317]
[1734487706903,1.5462,219.68,219.63,3.17084317]
[1734487707202,1.5462,219.68,219.63,0.76794317]
[1734487708804,1.4662,219.75,219.63,0.76794317]
[1734487709002,6.6062,219.75,219.63,0.76794317]
[1734487709198,1.4662,219.75,219.69,2.2755]
[1734487709398,1.4662,219.75,219.63,0.76794317]
[1734487709709,2.2752,219.72,219.63,0.76794317]
[1734487709908,2.2752,219.72,219.53,22.57105133]
[1734487710111,22.57105133,219.71,219.53,22.57105133]
[1734487710409,22.57105133,219.67,219.52,5.42831482]
[1734487710606,5.14,219.66,219.45,22.57105133]
[1734487710798,2.2764,219.61,219.47,2.2778]
[1734487711000,2.2764,219.61,219.45,22.57105133]
[1734487711001,1.5501,219.6,219.46,5.56001962]
[1734487711405,2.2767,219.59,219.41,22.57105133]
[1734487711601,5.14,219.58,219.37,22.57105133]
[1734487711808,5.14,219.58,219.41,27.93761244]
[1734487712104,5.14,219.57,219.41,27.93761244]
[1734487712613,22.57105133,219.55,219.36,22.57105133]
[1734487712801,22.57105133,219.55,219.34,5.50163796]
[1734487713001,22.57105133,219.55,219.32,22.57105133]
[1734487713204,2.2775,219.51,219.32,22.57105133]
[1734487713408,22.57105133,219.55,219.32,27.95180422]
[1734487713914,22.57105133,219.55,219.36,22.57105133]
[1734487714104,1.4899,219.56,219.36,22.57105133]
[1734487715016,5.12,219.55,219.36,22.57105133]
[1734487716117,5.50726547,219.48,219.36,22.57105133]
[1734487716306,5.12,219.55,219.36,22.57105133]
[1734487716511,2.2773,219.53,219.41,2.2784]
[1734487716711,3.0742,219.56,219.4,22.57105133]
[1734487717015,5.12,219.55,219.4,22.57105133]
[1734487718010,2.2773,219.53,219.4,22.57105133]
[1734487718316,10.67595392,219.55,219.36,22.57105133]
[1734487718707,10.67595392,219.55,219.4,2.2785]
[1734487719019,10.67595392,219.55,219.36,22.57105133]
[1734487719413,2.2777,219.49,219.39,2.2786]
[1734487719809,2.2777,219.49,219.38,2.2787]
[1734487720413,22.57105133,219.52,219.32,27.95180422]
[1734487721016,2.2783,219.43,219.32,2.2793]
[1734487721219,5.12,219.43,219.32,2.2793]
[1734487721712,5.12,219.43,219.29,2.2796]
[1734487721713,2.2786,219.4,219.29,2.2796]
[1734487721914,5.12,219.43,219.28,22.57105133]
[1734487722317,5.12,219.43,219.24,22.57105133]
[1734487722521,3.0617,219.42,219.2,22.57105133]
[1734487722715,2.2789,219.37,219.26,2.2799]
[1734487722917,4.5917,219.42,219.26,2.2799]
[1734487723524,2.2794,219.32,219.2,22.57105133]
[1734487723723,5.12,219.33,219.2,22.57105133]
[1734487724224,5.12,219.33,219.19,5.36035072]
[1734487724520,2.2798,219.28,219.18,2.2808]
[1734487724725,4.88,219.31,219.16,22.57105133]
[1734487725222,2.2799,219.27,219.18,2.2808]
[1734487725422,4.88,219.31,219.18,2.2808]
[1734487725619,4.88,219.31,219.12,22.57105133]
[1734487726422,2.2802,219.25,219.16,2.281]
[1734487726924,4.88,219.31,219.12,22.57105133]
[1734487727625,5.39182909,219.3,219.1,29.98866402]
[1734487727820,22.57105133,219.19,218.91,4.88]
[1734487728017,2.2817,219.1,219.02,2.2824]
[1734487728224,2.2817,219.1,218.97,22.57105133]
[1734487728519,9.3657,219.18,219.02,5.56814359]
[1734487728726,9.3657,219.18,219.04,2.2823]
[1734487728921,9.3657,219.18,219.02,5.56814359]
[1734487729229,2.2815,219.12,219.03,2.2824]
[1734487730128,4.9,219.11,219.03,2.2824]
[1734487730524,4.4857,219.18,219.02,5.56814359]
[1734487730924,4.9,219.17,219.02,5.56814359]
[1734487731224,10.1241,219.18,219.06,2.282]
[1734487731420,22.57105133,219.48,219.09,22.57105133]
[1734487731421,1.5289,219.35,219.09,22.57105133]
[1734487731728,22.57105133,219.31,219.09,22.57105133]
[1734487731923,5.57982053,219.24,219.09,22.57105133]
[1734487732427,2.2804,219.23,219.14,2.2812]
[1734487732627,5.57982053,219.24,219.09,22.57105133]
[1734487733725,22.57105133,219.31,219.13,22.57105133]
[1734487734033,4.9,219.3,219.13,22.57105133]
[1734487734526,4.9,219.3,219.08,1.4447]
[1734487734527,4.9,219.3,219.09,22.57105133]
[1734487734723,22.57105133,219.27,219.09,22.57105133]
[1734487735039,27.99691991,219.27,219.08,1.4447]
[1734487735424,2.2809,219.18,219.1,2.2816]
[1734487735620,4.9,219.22,219.1,2.2816]
[1734487736724,4.9,219.22,219.08,1.4447]
[1734487737026,2.2811,219.16,219.08,1.4447]
[1734487737225,4.9,219.22,219.03,3.0369]
[1734487737421,2.2813,219.14,219.06,2.282]
[1734487737825,22.57105133,219.19,219.03,3.0369]
[1734487738027,22.57105133,219.19,219.03,3.7861]
[1734487738528,2.2812,219.15,219.04,2.2822]
[1734487738826,22.57105133,219.19,219.03,1.5037]
[1734487739024,2.2812,219.15,219.06,2.2821]
[1734487739224,22.57105133,219.19,219.03,1.5037]
[1734487739730,22.57105133,219.19,219.08,2.2819]
[1734487740329,27.23105133,219.19,219.08,2.2819]
[1734487740526,2.2813,219.14,219.03,1.5037]
[1734487740733,27.23105133,219.19,219.03,1.5037]
[1734487740930,27.23105133,219.19,218.98,1.4709]
[1734487740931,22.57105133,219.15,218.98,1.4709]
[1734487741123,22.57105133,219.15,218.99,2.2828]
[1734487741428,22.57105133,219.15,218.93,22.57105133]
[1734487741631,2.2821,219.06,218.93,22.57105133]
[1734487741821,1.5946,219.14,218.93,22.57105133]
[1734487742024,2.2812,219.15,218.98,5.5740428]
[1734487742229,5.41343758,219.16,218.98,5.5740428]
[1734487743025,2.2815,219.12,219.03,2.2824]
[1734487743332,2.2815,219.12,218.98,5.5740428]
[1734487743632,2.2814,219.13,219.06,2.2821]
[1734487743936,5.41343758,219.16,218.98,5.5740428]
[1734487744626,5.41343758,219.16,219.06,2.2821]
[1734487744929,22.57105133,219.15,218.98,5.5740428]
[1734487746432,22.57105133,219.11,218.94,0.91349228]
[1734487746637,4.66,219.1,218.94,0.91349228]
[1734487747625,2.282,219.07,218.94,0.91349228]
[1734487747926,22.57105133,219.06,218.94,0.91349228]
[1734487748332,22.57105133,219.06,218.92,5.55953716]
[1734487748527,22.57105133,219.1,218.92,5.55953716]
[1734487748729,4.66,219.09,218.92,5.55953716]
[1734487749137,4.66,219.09,218.97,2.283]
[1734487749830,2.2824,219.04,218.97,2.283]
[1734487750036,4.66,219.09,218.97,2.283]
[1734487750235,2.2823,219.04,218.98,2.2829]
[1734487750435,4.66,219.09,218.92,5.55953716]
[1734487751541,4.66,219.09,218.95,2.2832]
[1734487752137,4.66,219.09,218.92,5.55953716]
[1734487752536,22.57105133,219.1,218.92,5.55953716]
[1734487752736,4.66,219.12,218.94,22.57105133]
[1734487753944,4.66,219.12,219.03,2.2823]
[1734487754239,4.66,219.12,218.94,22.57105133]
[1734487754240,22.57105133,219.15,218.94,22.57105133]
[1734487754547,2.2815,219.12,219.05,2.2821]
[1734487755243,4.66,219.13,219.05,2.2821]
[1734487755244,2.2816,219.11,219.05,2.2821]
[1734487755641,2.2816,219.11,218.94,22.57105133]
[1734487755841,4.66,219.13,218.94,22.57105133]
[1734487757246,2.2816,219.12,219.05,2.2821]
[1734487757441,22.57105133,219.15,218.97,4.42]
[1734487757748,4.42,219.14,218.97,4.42]
[1734487757938,4.42,219.14,219.05,2.2822]
[1734487757939,2.2816,219.11,219.05,2.2822]
[1734487758141,5.41343758,219.16,218.98,22.57105133]
[1734487758348,2.281,219.17,219.04,2.2823]
[1734487758542,4.42,219.17,219.05,2.9633]
[1734487759348,74.77105133,219.23,219.05,2.9633]
[1734487759651,1.4796,219.22,219.06,1.5866]
[1734487759949,5.8996,219.22,219.06,1.5866]
[1734487760443,22.57105133,219.19,218.98,22.57105133]
[1734487760646,1.5066,219.18,218.99,1.5951]
[1734487761149,1.5066,219.18,219.05,2.2822]
[1734487761347,1.5066,219.18,218.99,1.5951]
[1734487762144,1.5066,219.18,219.02,22.57105133]
[1734487762452,32.41691991,219.27,219.06,22.57105133]
[1734487762647,26.99105133,219.27,219.07,1.4609]
[1734487763145,2.2806,219.21,219.14,2.2812]
[1734487764149,22.57105133,219.27,219.17,2.2809]
[1734487764351,3.0353,219.28,219.11,4.42]
[1734487764552,3.0353,219.28,219.17,2.2809]
[1734487764553,2.2804,219.23,219.17,2.2809]
[1734487764752,3.0353,219.28,219.12,3.1291]
[1734487764947,5.42750685,219.25,219.12,3.1291]
[1734487765148,5.42750685,219.25,219.11,4.42]
[1734487765355,5.42750685,219.25,219.12,3.1002]
[1734487765847,2.2804,219.22,219.17,2.2809]
[1734487766045,5.42750685,219.25,219.12,3.1002]
[1734487767352,4.4832,219.29,219.12,3.1002]
[1734487767550,1.5074,219.29,219.14,22.57105133]
[1734487767750,0.40556,219.3,219.14,22.57105133]
[1734487767948,0.40556,219.3,219.13,13.95060259]
[1734487768953,2.68516,219.3,219.13,13.95060259]
[1734487769146,0.40556,219.3,219.14,4.2]
[1734487769347,4.2,219.29,219.14,4.2]
[1734487769749,2.2802,219.24,219.17,2.2809]
[1734487771147,4.2,219.29,219.14,4.2]
[1734487771551,0.40556,219.3,219.14,4.2]
[1734487771752,4.2,219.29,219.17,2.2809]
[1734487771956,14.42425672,219.29,219.17,2.2809]
[1734487772150,24.03758604,219.28,219.17,2.2809]
[1734487772352,2.2802,219.25,219.18,2.2808]
[1734487772655,17.14769296,219.26,219.14,4.2]
[1734487772858,10.22806338,219.28,219.14,26.87480774]
[1734487773055,6.92470176,219.27,219.14,26.87480774]
[1734487773251,0.40556,219.3,219.14,26.87480774]
[1734487773448,7.33115304,219.3,219.23,2.2802]
[1734487773652,0.40556,219.3,219.23,2.2802]
[1734487773854,0.40556,219.3,219.14,26.87480774]
[1734487774353,0.40556,219.3,219.25,2.28]
[1734487774565,7.33115304,219.3,219.25,2.28]
[1734487774755,7.33115304,219.3,219.14,26.87480774]
[1734487774956,2.68526,219.3,219.23,2.2802]
[1734487775153,0.40556,219.3,219.14,26.87480774]
[1734487775653,0.40556,219.3,219.24,2.2801]
[1734487775859,0.40556,219.3,219.18,22.67480774]
[1734487777260,0.40556,219.3,219.25,2.2801]
[1734487777459,0.40556,219.3,219.18,22.67480774]
[1734487777764,0.40556,219.3,219.18,2.2808]
[1734487777964,0.40556,219.3,219.14,26.87480774]
[1734487778362,0.40556,219.3,219.18,2.2808]
[1734487778563,0.40556,219.3,219.14,26.87480774]
[1734487778858,0.40556,219.3,219.19,5.52796235]
[1734487779058,4.60556,219.3,219.19,7.80866235]
[1734487779262,6.88526,219.3,219.19,5.52796235]
[1734487779464,4.60556,219.3,219.24,2.2802]
[1734487779663,4.60556,219.3,219.14,26.87480774]
[1734487779862,0.40556,219.3,219.18,22.67480774]
[1734487780063,0.40556,219.3,219.19,1.5351]
[1734487780258,0.40556,219.3,219.22,22.67480774]
[1734487780459,0.40556,219.3,219.22,4.2]
[1734487781269,0.40556,219.3,219.24,2.2802]
[1734487781972,2.2797,219.29,219.24,2.2802]
[1734487782671,1.5285,219.35,219.22,2.2803]
[1734487782872,2.28,219.27,219.17,9.53049881]
[1734487784070,3.98,219.33,219.17,9.53049881]
[1734487784467,3.98,219.33,219.22,2.2803]
[1734487784872,2.2798,219.28,219.22,2.2803]
[1734487785764,2.2799,219.27,219.22,2.2803]
[1734487785967,3.98,219.33,219.22,2.2803]
[1734487786670,2.2798,219.29,219.23,2.2803]
[1734487786967,22.67480774,219.32,219.05,4.5642]
[1734487787172,2.2804,219.23,219.17,2.2809]
[1734487787368,2.2804,219.23,219.09,22.67480774]
[1734487787369,3.98,219.25,219.13,5.43020579]
[1734487787670,3.98,219.24,219.2,2.2806]
[1734487787869,3.98,219.24,219.13,5.43020579]
[1734487788573,3.98,219.24,219.19,2.2807]
[1734487788970,5.35026124,219.33,219.13,28.10501353]
[1734487788971,3.98,219.29,219.13,28.10501353]
[1734487789167,2.2798,219.28,219.23,2.2803]